Cogmind - Beta 16 @@@ ROGUE MODE // 2025.11.02 @ 18:26:32 Player: Cameron Result: Destroyed by S-10 Pest with Light Assault Rifle Performance ------------- Evolutions (0) 0 Regions Visited (2) 400 Robots Destroyed (14) 70 Value Destroyed (417) 417 Prototype IDs (4) 80 Alien Tech Used (0) 0 Bonus (0) 0 TOTAL SCORE: 967 Bonus ------- None Cogmind --------- Core Integrity 0/250 Matter 300/300 Energy 100/100 System Corruption 1% Temperature Cool (0) Movement Walking (120) Location -10/Mines Parts ------- > --- POWER (1) -------- (None) > --- PROPULSION (2) --- Aluminum Leg Aluminum Leg > --- UTILITY (2) ------ Small Storage Unit > --- WEAPON (2) ------- (None) > --- INVENTORY (8) ---- Light Nuclear Core Compact Wheel Flight Unit Flight Unit Sensor Array ECM Suite Light Armor Plating Peak State ------------ > --- POWER ------------ Ion Engine > --- PROPULSION ------- Compact Wheel Compact Wheel > --- UTILITY ---------- High-capacity Storage Unit High-capacity Storage Unit > --- WEAPON ----------- Small Laser Assault Rifle > --- INVENTORY -------- Ion Engine Light Treads Aluminum Leg Aluminum Leg Aluminum Leg Aluminum Leg Compact Wheel Flight Unit Flight Unit Small Storage Unit Small Storage Unit Small Storage Unit Small Storage Unit Small Storage Unit Sensor Array Utility Shielding Utility Shielding Utility Shielding Utility Shielding Light Armor Plating [Rating: 9] Favorites ----------- Power Ion Engine Engine Ion Engine Propulsion Aluminum Leg Leg Aluminum Leg Wheel Compact Wheel Utility Small Storage Unit Storage Small Storage Unit Protection Propulsion Shielding Weapon Small Laser Energy Gun Small Laser Ballistic Gun Assault Rifle Build | -11 -10 -10 ------- Run | Yrd Mat Min Slots Evolved . | . . . Power . | . . . Propulsion . | . . . Utility . | . . . Weapon . | . . . Parts Attached 26 | 7 18 1 Power 3 | 1 2 . Engine 3 | 1 2 . Core . | . . . Reactor . | . . . Propulsion 11 | 3 7 1 Treads . | . . . Leg 9 | 2 6 1 Wheel 2 | 1 1 . Hover . | . . . Flight . | . . . Utility 8 | 1 7 . Device . | . . . Storage 6 | 1 5 . Processor . | . . . Hackware . | . . . Protection 2 | . 2 . Artifact . | . . . Weapon 4 | 2 2 . Energy Gun 3 | 1 2 . Energy Cannon . | . . . Ballistic Gun 1 | 1 . . Ballistic Cannon . | . . . Launcher . | . . . Special Weapon . | . . . Impact Weapon . | . . . Slashing Weapon . | . . . Piercing Weapon . | . . . Special Melee Weapon . | . . . Unidentified Prototypes . | . . . Parts Lost 9 | . 5 4 Power 2 | . 1 1 Propulsion 2 | . 2 . Utility 1 | . . 1 Weapon 4 | . 2 2 Highest Loss Streak 5 | . 2 5 To Critical Strikes . | . . . Average Backups 10 | 4 11 7 Power 1 | . 1 1 Propulsion 5 | 1 5 3 Utility 4 | . 4 3 Weapon . | 1 . . Tool/Special . | . . . Unused Backups 17 | . 10 7 Power 2 | . 1 1 Propulsion 7 | . 4 3 Utility 7 | . 4 3 Weapon 1 | . 1 . Tool/Special . | . . . Average Slot Usage (%) 92 | . 93 67 Engine 13 | . 13 10 Leg 19 | . 19 24 Wheel 8 | . 8 . Storage 22 | . 22 14 Protection 4 | . 4 10 Energy Gun 14 | . 14 7 Ballistic Gun 9 | . 9 . Peak Build Rating 9 | 6 9 7 Average Rating 7 | 4 7 5 On Entrance 4 | . 6 7 Avg Prop Armor Cover (%) 4 | . 4 . Naked Turns . | . . . Heaviest Build 88 | 11 88 13 Greatest Support 32 | 20 32 20 Greatest Overweight (x) 5 | . 5 . Average Overweight (x) . | . . . Largest Inventory Capacity 20 | 8 20 8 Average Capacity 11 | 6 12 8 Most Carried 20 | 6 20 8 Average Carried 10 | 4 11 7 Final Capacity 8 | 8 8 8 Final Carried 8 | 6 8 7 Class Distribution -------------------- 72% | Mutant 27% | Scavenger-Mutant Dominant Class ---------------- Mutant | -10/Materials Mutant | -10/Mines Resources | -11 -10 -10 ----------- Run | Yrd Mat Min Matter Collected 634 | 197 437 . Remotely . | . . . Salvage Created 500 | . 500 . Parts 30 | . 30 . Haulers Intercepted . | . . . Recyclers Shooed . | . . . Parts Field Recycled . | . . . Retrieved Matter . | . . . Parts Self-Destructed . | . . . Prevented . | . . . Parts Restored . | . . . Kills | -11 -10 -10 ------- Run | Yrd Mat Min Combat Hostiles Destroyed 14 | . 14 . Guns 14 | . 14 . Classes Destroyed 2 | . 2 . Swarmer 3 | . 3 . Grunt 11 | . 11 . Best Kill Streak 5 | . 5 . Combat Bots Only 5 | . 5 . Max Kills in Single Turn 1 | . 1 . Gunslinging . | . . . Exploded . | . . . Melee . | . . . Uniques/NPCs Destroyed . | . . . Combat | -11 -10 -10 -------- Run | Yrd Mat Min Hostile Shots Fired 160 | . 129 31 Missed 55 | . 48 7 Hits 105 | . 81 24 Projectile 105 | . 81 24 Critical Strikes 3 | . 3 . Damage Taken 1143 | . 949 194 Core 250 | . 185 65 Absorbed by Shields . | . . . Redirected to Shielding 50 | . 39 11 Core Remaining (%) 100 | 100 . . Volleys Fired 59 | . 58 1 Largest 2 | . 2 2 Hottest 80 | . 80 80 Shots Fired 93 | . 91 2 Gun 93 | . 91 2 Cannon . | . . . Launcher . | . . . Special . | . . . Kinetic 38 | . 38 . Thermal 55 | . 53 2 Explosive . | . . . Electromagnetic . | . . . Robot Hit Streak 17 | . 17 1 Robot Miss Streak 6 | . 6 1 Penetration Max . | . . . Secondary Targets 2 | . 2 . Max Gunslinging Chain 1 | . 1 . Shots Hit Robots 64 | . 63 1 Core Hits 27 | . 26 1 Critical Kills . | . . . Critical Parts Destroyed . | . . . Critical Strikes . | . . . Melee Attacks . | . . . Impact . | . . . Slashing . | . . . Piercing . | . . . Sneak Attacks . | . . . Combat Hostiles . | . . . Follow-up Attacks . | . . . Damage Inflicted 765 | . 736 29 Guns 747 | . 736 11 Cannons . | . . . Explosions . | . . . Melee . | . . . Ramming 18 | . . 18 Kinetic 342 | . 342 . Thermal 405 | . 394 11 Explosive . | . . . Electromagnetic . | . . . Impact . | . . . Slashing . | . . . Piercing . | . . . Highest Corruption 1 | . 1 1 Average Corruption 1 | . 1 1 Corruption Purged . | . . . Corruption Blocked . | . . . Effects 1 | . 1 . Message Errors 1 | . 1 . Overload Shots . | . . . Overflow Damage . | . . . Projectiles . | . . . Explosions . | . . . Melee . | . . . Knockbacks . | . . . Impact . | . . . Kinetic . | . . . Secondary . | . . . Self-Inflicted Damage . | . . . Shots . | . . . Rammed . | . . . Targets Rammed 11 | . . 11 Kicked 11 | . . 11 Crushed . | . . . Highest Temperature 91 | . 91 18 Average Temperature 38 | . 39 12 Received Heat Transfer 450 | . 450 . Siege Activations . | . . . Martial Activations . | . . . Shielding Activations . | . . . Robots Disrupted . | . . . Combat Hostiles . | . . . Robots Corrupted . | . . . Combat Hostiles . | . . . Parts Fried . | . . . Impact Corruptions . | . . . Robots Melted . | . . . Combat Hostiles . | . . . Parts Melted . | . . . Heat Transferred 925 | . 900 25 Parts Sabotaged . | . . . Parts Stolen . | . . . Parts Stripped . | . . . Power Chain Reactions . | . . . Alert | -11 -10 -10 ------- Run | Yrd Mat Min Maximum Alert Level . | . . . Low Security (%) 100 | 100 100 100 Level 1 . | . . . Level 2 . | . . . Level 3 . | . . . Level 4 . | . . . Level 5 . | . . . High Security . | . . . Max Security . | . . . Peak Influence 181 | . 181 25 Initial 25 | . . 25 Average 67 | . 73 7 Influence Increases 510 | . 510 . Destroy 0b10 Robot/C 280 | . 280 . Destroy Leader 50 | . 50 . Successful Hack 29 | . 29 . Destroy Structure 1 | . 1 . Lose Combat Pursuer 150 | . 150 . Influence Decreases 510 | . 444 66 Entered New Map 41 | . . 41 Time Decay 399 | . 394 5 Lost Part 70 | . 50 20 Squads Dispatched 4 | . 4 . Investigation 3 | . 3 . Extermination . | . . . Reinforcement 1 | . 1 . Assault . | . . . Garrison . | . . . Intercept . | . . . Searches Triggered . | . . . Construction Impeded . | . . . Haulers Reinforced . | . . . Active Scanning Responses . | . . . Cargo Convoy Interrupts . | . . . Stealth | -11 -10 -10 --------- Run | Yrd Mat Min Distress Signals 2 | . 2 . Communications Jammed . | . . . Distress Signals . | . . . Times Spotted 46 | . 42 4 Peak Tracking Total 8 | . 8 4 Tactical Retreats 5 | . 5 . Traps | -11 -10 -10 ------- Run | Yrd Mat Min Traps Triggered 5 | . 5 . Indirectly . | . . . Trap Hack Attempts . | . . . Triggered . | . . . Disarmed . | . . . Reprogrammed . | . . . Reused . | . . . Traps Extracted . | . . . Installed . | . . . Triggered . | . . . Machines | -11 -10 -10 ---------- Run | Yrd Mat Min Machines Disabled . | . . . Max in Single Turn . | . . . Machines Repaired . | . . . Machines Dismantled . | . . . Machines Sabotaged . | . . . Overloaded Fab Kills . | . . . Hacking | -11 -10 -10 --------- Run | Yrd Mat Min Machines Accessed 8 | . 8 . Terminals 7 | . 7 . Fabricators . | . . . Repair Stations 1 | . 1 . Recycling Units . | . . . Scanalyzers . | . . . Garrison Access . | . . . Total Hacks 23 | . 23 . Successful 8 | . 8 . Failed 15 | . 15 . Catastrophic 1 | . 1 . Database Lockouts . | . . . Manual 5 | . 5 . Terminals 20 | . 20 . Fabricators . | . . . Repair Stations 3 | . 3 . Recycling Units . | . . . Scanalyzers . | . . . Garrison Access . | . . . Terminal Hacks 8 | . 8 . Prototype ID Bank 3 | . 3 . Branch Access Points 1 | . 1 . Terminal Index 1 | . 1 . Maintenance Status 1 | . 1 . Registered Components 1 | . 1 . Zone Layout 1 | . 1 . Fabricator Hacks . | . . . Repair Station Hacks . | . . . Recycling Unit Hacks . | . . . Scanalyzer . | . . . Garrison Access Hacks . | . . . Unauthorized Hacks . | . . . Terminals . | . . . Fabricators . | . . . Repair Stations . | . . . Recycling Units . | . . . Scanalyzers . | . . . Garrison Access . | . . . Data Cores Recovered . | . . . Used . | . . . Hacking Detections 8 | . 8 . Full Trace Events 3 | . 3 . Feedback Events . | . . . Feedback Blocked . | . . . Robot Schematics Acquired . | . . . Robots Built . | . . . Authchips . | . . . Time . | . . . Total Robot Build Rating . | . . . Part Schematics Acquired . | . . . Parts Built . | . . . Authchips . | . . . Time . | . . . Total Part Build Rating . | . . . Part Studies Acquired . | . . . Parts Repaired . | . . . Time . | . . . Parts Recycled . | . . . Recycled Matter . | . . . Retrieved Matter . | . . . Retrieved Components . | . . . Parts Scanalyzed . | . . . Part Schematics Acquired . | . . . Parts Damaged . | . . . Bothacking | -11 -10 -10 ------------ Run | Yrd Mat Min Used RIF Installer . | . . . Robots Hacked . | . . . Non-combat . | . . . Combat . | . . . Robot Hacks Applied . | . . . Relay Couplers Released . | . . . Fabnet Peak Effective % . | . . . Robots Rewired . | . . . Allies Hacked . | . . . Hacks Repelled . | . . . Allies | -11 -10 -10 -------- Run | Yrd Mat Min Total Allies . | . . . Largest Group . | . . . Highest-Rated Group . | . . . Highest-Rated Ally . | . . . Total Orders . | . . . Ally Attacks . | . . . Total Damage . | . . . Kills . | . . . Allies Corrupted . | . . . Allies Melted . | . . . Intel | -11 -10 -10 ------- Run | Yrd Mat Min Active Infowar (turns) . | . . . Robot Analysis Total . | . . . Derelict Logs Recovered . | . . . Drone Launches . | . . . Drone Recoveries . | . . . Exploration | -11 -10 -10 ------------- Run | Yrd Mat Min Turns Passed 1240 | 67 1145 28 Spaces Moved 745 | 45 691 9 Core 5 | 4 1 . Treads . | . . . Legs 544 | 37 498 9 Wheels 196 | 4 192 . Hover . | . . . Flight . | . . . Fastest Speed 50 | 50 100 120 Average Speed 125 | 112 126 120 Slowest Speed 400 | 120 400 120 Overloaded Moves . | . . . Propulsion Burnouts . | . . . Robots Hopped . | . . . Potential Cave-ins . | . . . Cave-ins Triggered . | . . . Exploration Rate (%) 34 | 4 93 6 Regions Visited 2 Branch Regions 1 Pre-discovered Areas . | . . . Known Exits Taken 1 | . 1 . Unknown Exits Taken 1 | 1 . . Scrap Searched . | . . . Spaces Dug . | . . . Terrain Destroyed . | . . . Melee . | . . . Projectile . | . . . AOE . | . . . Terrain Rammed . | . . . Walls Destroyed . | . . . Machines Disabled . | . . . Actions | -11 -10 -10 --------- Run | Yrd Mat Min Total 958 | 59 877 22 Wait 35 | . 35 . Move 743 | 44 690 9 Hop . | . . . Pick Up 47 | 8 39 . Fast Attach 12 | 4 8 . Attach 6 | 2 3 1 Detach 2 | . 2 . Swap 17 | 1 16 . Drop 26 | . 26 . Fire 59 | . 58 1 Melee . | . . . Ram . | . . . Kick 11 | . . 11 Crush . | . . . Escape Stasis . | . . . Rewire . | . . . Trap . | . . . Miscellaneous . | . . . Route ------- -11/Scrapyard -10/Materials (discovered 4 exits: [*Mat x3] / *Min) -10/Mines History --------- Turn | Location | Event 16 | -11/Scrapyard | Discovered new exit (range 14) 68 | -11/Scrapyard | Entered Materials 287 | -10/Materials | Discovered new exit (range 13) 335 | -10/Materials | Build established: Mutant 510 | -10/Materials | Discovered new exit (range 8) 729 | -10/Materials | Discovered new exit (range 10) 880 | -10/Materials | Core integrity fell below 50% 1039 | -10/Materials | Discovered new exit (range 8) 1050 | -10/Materials | Identified exit to Mines 1193 | -10/Materials | Build established: Scavenger-Mutant 1213 | -10/Materials | Entered Mines 1214 | -10/Mines | Assembled infested the area 1226 | -10/Mines | Core integrity fell below 20% 1241 | -10/Mines | Destroyed by S-10 Pest with Light Assault Rifle Last Messages --------------- 01201_ Aluminum Leg destroyed. 01206_ S-10 Pest destroyed. 01206_ Switching to secondary target: G-47 Trooper. 01206_ Machine disabled. 01208_ Critical hit (Burn: +37). LOCATION=MINES GOAL=ESCAPE 01214_ ALERT: Infestation in the mines, dispatching Demolisher response squad. 01219_ Sml. Laser destroyed. 01228_ Kicked S-10 Pest out of the way. 01229_ Kicked S-10 Pest. 01233_ Kicked S-10 Pest out of the way. 01233_ Propulsion Shielding destroyed. 01234_ Kicked S-10 Pest out of the way. 01237_ Ion Engine destroyed. 01238_ Kicked S-10 Pest. 01239_ Kicked S-10 Pest out of the way. 01240_ Kicked S-10 Pest. Map ----- +----------------------------------------------------+ | ???????????????????????????????????????? | | ???????????????????????????????????????? | | ???????????????????????????????????????? | | ???????????????????????????????????????? | | ???????????????????????????????????????? | | ???????????????????????????????????????? | | ???????????????????????????????????????? | | ???????????????????????????????????????? | | ?????????????????????????##????????????? | | ???????????????????????### ????????????? | | ??????????????????????## ????????????? | | ??????????????????????? #???????????? | | ??????????????????????? #??????????? | | ???????????????????????# #??????????? | | ???????????????????????# #??????????? | | ???????????????????????# ##?????????? | | ???????????????????????# ##????????? | | ???????????????????????# ##???????? | | ????????????????????????# #???????? | | ?????????????????????????# ?????????? | | ?????????????????########## #??????????? | | ?????????????????# ##%#??????????? | | ?????????????????# """ ##%#??????????? | | ?????????????????# """ ##%#??????????? | | ?????????????????# """ %##s## ###?????? | | ?????????????????# s@s% #?????? | | ?????????????????# ####### #?????? | | ?????????????????# #?????????????? | | ?????????????????# #?????????????? | | ?????????????????# #?????????????? | | ?????????????????#########?????????????? | | ???????????????????????????????????????? | | ???????????????????????????????????????? | | ???????????????????????????????????????? | | ???????????????????????????????????????? | | ???????????????????????????????????????? | | ???????????????????????????????????????? | | ???????????????????????????????????????? | | ???????????????????????????????????????? | | ???????????????????????????????????????? | | ???????????????????????????????????????? | | ???????????????????????????????????????? | | ???????????????????????????????????????? | | ???????????????????????????????????????? | | ???????????????????????????????????????? | | ???????????????????????????????????????? | | ???????????????????????????????????????? | | | | | | | +----------------------------------------------------+ Best States ------------- Heat Dissipation 25 Energy Generation 10 Energy Capacity 250 Matter Stores 300 Matter Capacity 300 Sight Range 16 Terrain Scan Density 10 Propulsion Shielding 33 Utility Shielding 33 Evasion (%) 55 Item Schematics ----------------- None Robot Schematics ------------------ None Fabricated ------------ Nothing Repaired ---------- Nothing Studied --------- None Alien Tech Used ----------------- None Achievements -------------- None Challenges ------------ None Game ------ Seed PointySniperStorage Manual? 0 Play Time 00:15:56 Cumulative 42.1 hours Start 2025.11.02 @ 18:06:23 End 2025.11.02 @ 18:26:32 Sessions 1 Manual Loads 0 Difficulty Rogue Special Mode None Game No. 38 Rogue 38 Adventurer 0 Explorer 0 Win Type - Total 0 Types 0/0/0/0/0/0/0/0/0/0 Lore% 14 Gallery% 31 Achievement% 23 Wizard Run 0 Options --------- Layout 1 ASCII 0 Keyboard 0 Movement Numpad Keybinds 0 Fullscreen 2 Font 32/SmallcapsGlow Map View 50x35 Zoom Use 0% Tactical HUD 1 Map Filters NONE Filters NONE Steam 1 RUN: 7581adc5-3bee-455d-a9cb-53c2468d387d